bitfinex-derivatives/quotes_ETHF0:USTF0_20250220
["timestamp","ask_amount","ask_price","bid_price","bid_amount"]
[1740079547696,3.0896,2758.5,2758.2,3.2078]
[1740079547897,3.2078,2758.3,2757.5,3.2078]
[1740079548091,2.38277,2758.2,2757.5,3.2078]
[1740079548398,0.72508,2757.7,2757.5,3.2078]
[1740079548694,2.514,2757.6,2757.5,3.2078]
[1740079549789,2.514,2757.6,2757.5,3.93293]
[1740079549987,2.514,2757.6,2757.5,3.2078]
[1740079551498,2.514,2757.6,2757.5,3.93293]
[1740079551894,2.514,2757.6,2757.5,3.2078]
[1740079552298,2.514,2757.6,2757.5,3.93293]
[1740079552896,2.514,2757.6,2757.5,3.2078]
[1740079553091,2.514,2757.6,2757.3,0.00362458]
[1740079553294,0.72516,2757.4,2757.3,0.00362458]
[1740079553793,0.72514,2757.5,2757.3,0.00362458]
[1740079554199,2.514,2757.6,2757.3,0.00362458]
[1740079554401,2.514,2757.6,2757.4,0.72513]
[1740079554695,2.514,2757.6,2757.3,0.00362458]
[1740079555210,3.23911,2757.6,2757.4,0.72513]
[1740079555399,2.514,2757.6,2757.4,0.72513]
[1740079555600,3.23911,2757.6,2757.4,0.72516]
[1740079555897,2.514,2757.6,2757.3,0.00362458]
[1740079556102,2.514,2757.6,2757.5,3.93293]
[1740079557500,0.72506,2757.8,2757.7,0.72505]
[1740079557699,3.22406,2757.8,2757.7,0.72505]
[1740079558103,0.72508,2757.7,2757.6,1.31279]
[1740079558303,3.22406,2757.8,2757.7,0.72508]
[1740079558801,1.7375,2758.2,2757.6,0.5877]
[1740079559001,2.498,2758.1,2757.8,3.2078]
[1740079559196,2.498,2758.0,2757.8,3.2078]
[1740079559395,2.498,2758.0,2757.9,0.72501]
[1740079559593,2.497,2758.1,2758.0,0.72498]
[1740079559797,3.22197,2758.1,2758.0,0.72498]
[1740079560000,0.00543685,2758.6,2758.5,0.72487]
[1740079560397,0.00543685,2758.6,2758.3,3.2078]
[1740079560706,0.00543685,2758.6,2758.4,0.72488]
[1740079560914,0.00543685,2758.6,2758.3,3.2078]
[1740079561108,0.00543685,2758.6,2758.5,0.72487]
[1740079564808,0.00543685,2758.6,2758.5,1.26257]
[1740079568710,1.1188,2759.3,2759.2,0.72468]
[1740079568711,1.84347,2759.3,2759.2,0.72468]
[1740079569108,1.84347,2759.3,2759.1,3.2078]
[1740079569311,0.72468,2759.2,2759.1,3.9325]
[1740079570012,0.72468,2759.2,2759.1,3.93251]
[1740079570214,1.1188,2759.3,2759.1,3.2078]
[1740079570616,1.1188,2759.3,2759.2,0.72468]
[1740079571509,0.00543685,2759.4,2759.3,0.72466]
[1740079572612,2.485,2760.0,2759.3,46.8]
[1740079572812,2.485,2760.0,2759.9,0.7245]
[1740079573311,3.79111,2760.3,2760.1,0.72443]
[1740079573516,0.72442,2760.2,2760.1,0.72443]
[1740079573717,1.30611,2760.3,2760.1,0.72443]
[1740079573911,3.79011,2760.3,2760.1,0.72443]
[1740079574107,0.72443,2760.2,2760.0,0.72445]
[1740079574307,0.72444,2760.2,2759.8,3.2078]
[1740079574511,0.5817,2760.3,2760.0,0.72446]
[1740079574708,3.78812,2760.3,2760.0,0.72446]
[1740079575111,0.72443,2760.2,2759.9,0.72448]
[1740079575312,0.72446,2760.1,2759.8,3.93231]
[1740079575522,0.7245,2759.9,2759.8,3.2078]
[1740079576216,0.7245,2759.9,2759.2,3.53267]
[1740079576217,2.482,2759.9,2759.5,3.2078]
[1740079576415,0.72457,2759.7,2759.5,3.2078]
[1740079576616,0.5545,2759.8,2759.5,3.2078]
[1740079577016,1.27903,2759.8,2759.5,3.93239]
[1740079577213,0.5545,2759.8,2759.5,3.2078]
[1740079577711,0.5545,2759.8,2759.6,0.72456]
[1740079577910,1.27903,2759.8,2759.5,3.93239]
[1740079578112,1.27903,2759.8,2759.6,0.72458]
[1740079578309,0.72456,2759.7,2759.5,3.2078]
[1740079578521,1.27904,2759.8,2759.5,3.93239]
[1740079578817,1.27904,2759.8,2759.5,3.2078]
[1740079579021,0.5545,2759.8,2759.6,0.72457]
[1740079579424,1.27903,2759.8,2759.6,0.72457]
[1740079579922,0.5545,2759.8,2759.7,0.72455]
[1740079580115,2.482,2759.9,2759.8,0.72453]
[1740079580315,2.482,2759.9,2759.7,0.72453]
[1740079580627,0.72453,2759.8,2759.5,3.2078]
[1740079580821,0.72453,2759.8,2759.6,0.72457]
[1740079581023,3.20652,2759.9,2759.6,0.72457]
[1740079581522,0.72453,2759.8,2759.6,0.72457]
[1740079581814,2.482,2759.9,2759.5,3.93239]
[1740079582019,0.72455,2759.8,2759.5,3.2078]
[1740079582213,2.482,2759.9,2759.5,3.2078]
[1740079583526,3.20651,2759.9,2759.7,0.72454]
[1740079583725,2.482,2759.9,2759.5,3.2078]
[1740079583927,0.72454,2759.8,2759.6,0.72457]
[1740079584520,3.20651,2759.9,2759.7,0.72453]
[1740079584827,2.468,2760.3,2759.8,3.2078]
[1740079585228,0.7245,2759.9,2759.8,44.0078]
[1740079585823,0.7245,2759.9,2759.8,3.2078]
[1740079590121,0.5921,2760.0,2759.8,3.2078]
[1740079590327,1.31659,2760.0,2759.8,3.93231]
[1740079590829,0.72449,2760.0,2759.8,3.2078]
[1740079591031,0.72449,2760.0,2759.8,3.93231]
[1740079591231,2.468,2760.3,2759.8,3.2078]
[1740079591433,4.279,2760.3,2759.9,0.72449]
[1740079591621,1.81106,2760.2,2759.8,3.93232]
[1740079591822,0.72446,2760.1,2759.9,0.72448]
[1740079592235,0.72447,2760.1,2759.9,0.72448]
[1740079592431,0.72447,2760.0,2759.9,0.72448]
[1740079592631,3.18247,2760.1,2759.9,0.72448]
[1740079593234,2.458,2760.1,2759.9,0.72448]
[1740079593836,2.458,2760.1,2759.8,3.2078]
[1740079594030,2.458,2760.1,2760.0,0.72447]
[1740079595741,1.6446,2760.4,2759.8,5.01912]
[1740079595937,1.6446,2760.4,2760.3,0.72439]
[1740079596238,1.0974,2760.4,2760.3,0.72439]
[1740079596439,3.5494,2760.4,2760.3,0.72439]
[1740079596634,1.0974,2760.4,2760.3,0.72439]
[1740079596930,1.0974,2760.4,2760.1,3.2078]
[1740079596931,3.18177685,2760.5,2760.4,0.72437]
[1740079597331,0.00543685,2760.5,2760.4,0.72437]
[1740079597636,0.00543685,2760.5,2760.4,3.93217]
[1740079602042,0.00543685,2760.5,2760.4,3.2078]
[1740079602239,0.72977685,2760.5,2760.4,3.2078]
[1740079602433,0.00543685,2760.5,2760.1,3.93223]
[1740079602635,0.72442,2760.2,2760.1,3.2078]
[1740079603041,3.6013,2760.4,2760.1,3.2078]
[1740079603345,3.6013,2760.4,2760.2,0.72442]
[1740079603346,4.32567,2760.4,2760.2,0.72442]
[1740079603537,0.7244,2760.3,2760.1,3.93223]
[1740079604541,3.6013,2760.4,2760.1,3.2078]
[1740079604842,3.6013,2760.4,2760.3,0.72439]
[1740079605034,3.6013,2760.4,2760.1,3.2078]
[1740079605239,4.32568,2760.4,2760.2,0.7244]
[1740079605641,3.6013,2760.4,2760.2,0.7244]
[1740079606047,4.32568,2760.4,2760.2,0.7244]
[1740079607745,3.6013,2760.4,2760.1,3.2078]
[1740079608047,0.72441,2760.3,2760.1,3.93224]
[1740079608547,3.6013,2760.4,2760.1,3.2078]
[1740079608845,4.32569,2760.4,2760.2,0.72442]
[1740079609043,1.1533,2760.4,2760.1,3.2078]
[1740079609240,2.44543685,2760.5,2760.3,0.72439]
[1740079609439,0.00543685,2760.5,2760.4,3.2078]
[1740079609641,0.00543685,2760.5,2760.4,3.93217]
[1740079610849,6.85e-06,2760.5,2760.4,3.93217]
[1740079611943,6.85e-06,2760.5,2760.4,9.93217]
[1740079612252,6.85e-06,2760.5,2760.4,50.73217]
[1740079612451,6.85e-06,2760.5,2760.4,51.18520443]
[1740079612950,6.85e-06,2760.5,2760.4,50.73217]
[1740079614745,6.85e-06,2760.5,2760.4,51.18477347]
[1740079615551,0.591,2761.8,2760.4,50.46040347]
[1740079615745,0.591,2761.8,2761.7,0.72403]
[1740079617065,0.00543685,2762.0,2761.9,0.72397]
[1740079617266,0.00543685,2762.0,2761.9,3.93177]
[1740079621068,0.72938685,2762.0,2761.9,3.2078]
[1740079621960,0.72403,2761.7,2761.6,3.2078]
[1740079622163,2.437,2761.7,2761.6,3.93185]
[1740079622358,3.16103,2761.7,2761.6,3.93185]
[1740079622771,2.437,2761.7,2761.6,3.93185]
[1740079623561,0.00543685,2762.0,2761.9,0.72397]
[1740079623763,0.00543685,2762.0,2761.9,3.93177]
[1740079625960,0.72938685,2762.0,2761.9,3.93177]
[1740079626166,0.00543685,2762.0,2761.9,3.93177]
[1740079630674,8.6028,2763.7,2762.3,3.6193]
[1740079630876,0.72365,2763.2,2763.0,3.93147]
[1740079631066,0.581,2763.1,2763.0,3.93147]
[1740079631575,0.581,2763.1,2763.0,3.93149]
[1740079632169,0.00543685,2763.3,2763.0,3.2078]
[1740079632574,0.00543685,2763.3,2763.1,0.72364]
[1740079633068,0.00543685,2763.3,2763.0,3.2078]
[1740079633471,0.72904685,2763.3,2763.0,3.93147]
[1740079633671,0.00543685,2763.3,2763.1,0.72365]
[1740079634170,0.00543685,2763.3,2763.2,0.72363]
[1740079634771,5.6608,2764.5,2763.2,4.26205]
[1740079634967,0.5379,2764.3,2763.5,3.2078]
[1740079635176,0.72348,2763.8,2763.5,3.2078]
[1740079635379,1.6941,2763.7,2763.5,3.2078]
[1740079635571,2.41763,2763.7,2763.5,3.2078]
[1740079635776,1.6941,2763.7,2762.8,3.21323685]
[1740079636076,0.72371,2762.9,2762.8,0.00543685]
[1740079636382,2.458,2763.0,2762.8,0.00543685]
[1740079636571,1.1307,2762.9,2762.8,0.72917685]
[1740079636877,1.1307,2762.9,2762.8,0.00543685]
[1740079637078,1.1307,2762.9,2762.8,0.72917685]
[1740079637675,2.457,2763.1,2762.8,0.00543685]
[1740079637980,3.18162,2763.3,2763.0,3.93147]
[1740079638171,2.458,2763.3,2763.0,3.93147]
[1740079638374,0.72361,2763.3,2763.0,3.93147]
[1740079638575,0.00540275,2763.9,2763.0,11.6678]
[1740079638781,0.00540275,2763.9,2763.8,3.93128]
[1740079638968,1.6925,2764.5,2763.8,3.93128]
[1740079638969,1.6925,2764.5,2764.2,0.72336]
[1740079639279,1.6925,2764.5,2764.2,3.2078]
[1740079639581,3.2078,2765.1,2764.2,5.6918]
[1740079639785,0.5769,2765.0,2764.6,3.2078]
[1740079639976,0.5769,2765.0,2764.9,3.93099]
[1740079640283,0.5769,2765.0,2764.9,3.2078]
[1740079640583,1.80723,2766.1,2764.9,3.2078]
[1740079640881,1.80723,2766.1,2764.6,2.484]
[1740079640882,0.5769,2765.7,2765.2,3.2078]
[1740079641177,0.5769,2765.7,2765.2,3.93091]
[1740079641677,0.5769,2765.7,2765.2,3.9309]
[1740079641678,1.29988,2765.7,2765.2,3.9309]
[1740079641883,0.72304,2765.5,2765.2,3.2078]
[1740079642180,0.72302,2765.6,2765.2,3.2078]
[1740079642380,0.5769,2765.7,2765.2,3.2078]
[1740079642581,0.5769,2765.7,2765.1,2.509]
[1740079642777,0.5769,2765.7,2765.2,3.2078]
[1740079643179,1.2999,2765.7,2765.2,3.2078]
[1740079643372,1.2999,2765.7,2765.2,3.93091]
[1740079643683,0.5769,2765.7,2765.3,0.72308]
[1740079643979,0.5769,2765.7,2765.3,0.72306]
[1740079644280,0.5769,2765.7,2765.5,3.2078]
[1740079644878,0.5769,2765.7,2765.5,3.93082]
[1740079645078,0.5769,2765.7,2765.5,3.2078]
[1740079645274,3.2078,2766.2,2765.5,3.2078]
[1740079645474,0.5625,2765.9,2765.5,3.2078]
[1740079645780,0.72314,2765.1,2764.9,3.2078]
[1740079645981,0.72312,2765.2,2764.9,3.2078]
[1740079646179,0.5625,2765.1,2764.9,3.2078]
[1740079646485,0.5625,2765.1,2764.9,3.93097]
[1740079646684,0.5625,2765.1,2764.9,3.93098]
[1740079647282,0.5625,2765.1,2765.0,0.72316]
[1740079647481,0.5625,2765.1,2764.9,3.2078]
[1740079647683,0.72316,2765.0,2764.9,3.2078]
[1740079647887,0.5625,2765.1,2764.6,3.2078]
[1740079648088,0.7232,2764.9,2764.6,3.2078]
[1740079648289,0.72317,2765.0,2764.6,3.93106]
[1740079648487,0.5625,2765.1,2764.6,3.2078]
[1740079648989,1.28565,2765.1,2764.6,3.2078]
[1740079649187,0.5625,2765.1,2764.6,3.2078]
[1740079649383,0.72317,2765.0,2764.7,0.72323]
[1740079649589,0.72318,2765.0,2764.6,3.93106]
[1740079650483,0.5625,2765.1,2764.6,3.93106]
[1740079650683,0.5625,2765.1,2764.6,3.2078]
[1740079651083,0.5625,2765.1,2764.8,0.72319]
[1740079651385,0.5625,2765.1,2764.6,3.2078]
[1740079651584,1.1411,2765.8,2765.0,3.2078]
[1740079651789,0.72301,2765.6,2765.3,3.93087]
[1740079652087,1.1411,2765.8,2765.0,3.2078]
[1740079652283,0.5353,2765.5,2765.0,3.2078]
[1740079652683,0.72314,2765.1,2765.0,3.2078]
[1740079653088,2.514,2765.4,2765.0,3.2078]
[1740079653596,0.72312,2765.2,2765.0,3.93096]
[1740079653784,3.23707,2765.4,2765.0,3.2078]
[1740079653981,0.5353,2765.5,2765.0,3.2078]
[1740079654185,0.5353,2765.5,2765.3,3.93087]
[1740079654393,1.25834,2765.5,2765.3,3.2078]
[1740079655084,0.5353,2765.5,2765.3,3.2078]
[1740079655290,0.72306,2765.4,2765.3,3.2078]
[1740079655487,0.5353,2765.5,2765.0,3.2078]
[1740079655689,0.72314,2765.1,2765.0,3.2078]
[1740079656086,0.5353,2765.5,2765.0,3.2078]
[1740079656283,0.72312,2765.2,2765.0,3.93096]
[1740079656483,0.72307,2765.4,2765.2,0.72311]
[1740079656682,0.5353,2765.5,2765.3,3.2078]
[1740079656885,0.72306,2765.4,2765.3,3.2078]
[1740079657193,0.72311,2765.3,2765.0,3.93096]
[1740079657489,0.72314,2765.1,2765.0,3.2078]
[1740079658788,0.5353,2765.5,2765.0,3.2078]
[1740079658986,1.25834,2765.5,2765.3,0.72308]
[1740079659191,1.25834,2765.5,2765.3,3.93088]
[1740079659588,0.5353,2765.5,2765.3,3.2078]
[1740079659790,0.5353,2765.5,2765.3,3.93087]
[1740079659989,1.25834,2765.5,2765.3,3.93087]
[1740079660395,0.3369,2765.5,2765.4,0.72306]
[1740079660592,0.72303,2765.6,2765.4,0.72306]
[1740079660801,0.72303,2765.5,2765.3,3.93087]
[1740079661090,0.72306,2765.4,2765.3,3.2078]
[1740079661292,4.90752,2765.8,2765.3,3.93088]
[1740079661494,4.90752,2765.8,2765.3,3.2078]
[1740079661995,0.72306,2765.4,2765.3,3.2078]
[1740079662389,3.1001,2765.8,2765.1,0.5376]
[1740079662594,0.72311,2765.2,2765.1,0.5376]
[1740079663697,0.7231,2765.3,2765.1,1.26074]
[1740079663896,0.72311,2765.2,2765.1,1.26074]
[1740079664199,0.5743,2765.5,2765.1,0.5376]
[1740079664500,0.7231,2765.3,2765.1,1.26072]
[1740079664700,0.5791,2765.8,2765.1,0.5376]
[1740079664994,0.72299,2765.7,2765.5,3.93082]
[1740079665297,1.80721,2766.1,2765.6,0.72301]
[1740079665491,0.72297,2765.8,2765.6,0.72301]
[1740079665892,2.51,2766.1,2765.7,0.72298]
[1740079666099,4.8992,2766.2,2765.2,1.80777]
[1740079666100,0.5743,2766.2,2765.8,3.2078]
[1740079666294,3.2078,2766.8,2766.1,3.2078]
[1740079666493,0.5888,2767.0,2766.4,3.2078]
[1740079666796,0.5888,2767.0,2766.4,44.0078]
[1740079666998,0.72282,2766.3,2766.2,0.00542662]
[1740079667291,0.5781,2766.9,2766.2,0.00542662]
[1740079667292,2.53,2766.4,2766.2,0.00542662]
[1740079667498,0.72282,2766.3,2766.2,0.00542662]
[1740079667700,2.53,2766.4,2766.2,0.00542662]
[1740079667898,3.2528,2766.4,2766.2,0.00542662]
[1740079668290,0.72282,2766.3,2766.2,0.00542662]
[1740079668596,1.31162,2766.3,2766.2,0.00542662]
[1740079673200,1.31162,2766.3,2765.3,2.927]
[1740079673201,7.1641,2766.3,2765.3,2.927]
[1740079673400,0.72308,2765.3,2765.2,3.2078]
[1740079674103,0.72316,2765.0,2764.9,0.5783]
[1740079674600,0.72319,2764.9,2764.8,3.2078]
[1740079675306,0.72322,2764.8,2764.7,0.00542662]
[1740079675505,1.31212,2764.8,2764.7,0.00542662]
[1740079675707,1.31212,2764.8,2764.2,6.1348]
[1740079675708,3.7967,2764.8,2764.2,6.1348]
[1740079675904,3.7967,2764.8,2763.9,0.5627]
[1740079675905,3.7967,2764.8,2764.0,40.8]
[1740079676108,3.2078,2764.4,2763.8,3.2078]
[1740079676308,0.72353,2763.6,2763.2,3.2078]
[1740079676495,3.2078,2764.1,2763.3,40.8]
[1740079676496,2.538,2763.8,2763.3,40.8]
[1740079676704,0.72354,2763.6,2763.3,40.8]
[1740079676903,0.72354,2763.6,2763.3,40.80542662]
[1740079677212,2.54342662,2763.8,2763.3,0.00542662]
[1740079677410,5.75122662,2763.8,2763.3,0.00542662]
[1740079678004,0.72353,2763.6,2763.3,0.00542662]
[1740079678311,2.54342662,2763.8,2763.3,0.00542662]
[1740079678498,3.26692662,2763.8,2763.3,0.00542662]
[1740079679095,0.72351,2763.7,2763.3,0.00542662]
[1740079679509,2.54342662,2763.8,2763.3,0.00542662]
[1740079679807,0.00542662,2763.8,2763.3,0.00542662]
[1740079680008,2.539,2763.7,2763.3,0.72901662]
[1740079680305,0.72358,2763.4,2763.3,0.00542662]
[1740079680705,2.539,2763.7,2763.3,0.00542662]
[1740079681008,0.00542662,2763.8,2763.4,3.2078]
[1740079681201,2.54742662,2763.8,2763.4,3.2078]
[1740079681402,0.72352,2763.7,2763.4,3.2078]
[1740079681706,2.54742662,2763.8,2763.4,3.2078]
[1740079682015,0.72353,2763.6,2763.4,3.2078]
[1740079682197,2.54742662,2763.8,2763.3,0.00542662]
[1740079682404,2.54742662,2763.8,2763.3,3.21322662]
[1740079682405,0.72357,2763.5,2763.3,3.21322662]
[1740079682709,2.54742662,2763.8,2763.3,3.21322662]
[1740079682902,0.00542662,2763.8,2763.4,0.72358]
[1740079683103,2.55042662,2763.8,2763.3,0.00542662]
[1740079683610,0.72357,2763.5,2763.3,0.00542662]
[1740079683805,0.72358,2763.4,2763.3,0.00542662]
[1740079684001,2.55042662,2763.8,2763.3,0.00542662]
[1740079684202,2.55042662,2763.8,2763.3,3.21322662]
[1740079684406,2.55042662,2763.8,2763.4,0.72356]
[1740079684703,2.55042662,2763.8,2763.6,0.72352]
[1740079684907,0.00542662,2763.8,2763.6,3.2078]
[1740079685305,0.00542662,2763.8,2763.7,0.7235]
[1740079686007,2.547,2764.5,2763.8,1.8087]
[1740079686213,0.72331,2764.5,2764.3,3.2078]
[1740079686406,0.72329,2764.6,2764.3,3.93114]
[1740079686911,2.548,2764.8,2764.3,3.2078]
[1740079687106,0.00542662,2764.7,2764.5,0.72328]
[1740079687410,0.00542662,2764.7,2764.6,3.93107]
[1740079690009,6.8861,2765.8,2765.2,0.7231]
[1740079690210,8.15169,2765.8,2765.2,3.2078]
[1740079690408,0.72308,2765.3,2765.2,3.2078]
[1740079690809,6.3443,2765.8,2765.2,3.2078]
[1740079691009,0.72308,2765.3,2765.2,3.2078]
[1740079691213,0.72308,2765.3,2765.2,3.21322662]
[1740079692118,0.72307,2765.4,2765.2,3.21322662]
[1740079692418,0.72308,2765.3,2765.2,3.21322662]
[1740079692615,0.72308,2765.3,2765.2,0.00542662]
[1740079694217,2.54,2765.3,2764.8,3.2078]
[1740079694417,5.7478,2765.3,2764.4,3.2078]
[1740079694726,7.55554,2765.3,2764.7,3.2078]
[1740079694921,0.72315,2765.1,2764.7,3.93103]
[1740079695122,2.54,2765.3,2764.7,3.2078]
[1740079695322,0.72318,2765.0,2764.7,3.93104]
[1740079695522,0.72318,2765.0,2764.7,3.93646662]
[1740079695721,2.543,2765.1,2765.0,0.72315]
[1740079696021,3.26614,2765.1,2765.0,3.2078]
[1740079696218,3.26614,2765.1,2764.7,0.72865662]
[1740079696219,0.7232,2764.9,2764.7,3.21322662]
[1740079696621,0.72318,2765.0,2764.7,3.93646662]
[1740079696823,3.26614,2765.1,2764.9,0.72319]
[1740079697124,3.26615,2765.1,2764.8,0.72321]
[1740079697324,2.543,2765.1,2764.7,3.93645662]
[1740079697523,0.72317,2765.0,2764.7,3.93645662]
[1740079698221,2.543,2765.1,2764.7,3.93646662]
[1740079698416,2.543,2765.1,2764.7,3.93645662]
[1740079698612,0.72318,2765.0,2764.7,3.93645662]
[1740079698924,2.543,2765.1,2764.9,0.72318]
[1740079699123,2.543,2765.1,2764.7,3.21322662]
[1740079699425,2.543,2765.1,2764.9,0.72318]
[1740079699622,2.543,2765.1,2764.7,3.21322662]
[1740079700121,3.26212,2765.2,2765.0,3.92848367]
[1740079700713,0.00542662,2765.3,2765.2,0.72311]
[1740079700913,3.26451662,2765.3,2765.1,0.72313]
[1740079701129,2.54142662,2765.3,2765.0,3.2078]
[1740079701316,3.26452662,2765.3,2765.1,0.72311]
[1740079701620,0.72852662,2765.3,2765.1,0.72311]
[1740079701925,2.53942662,2765.3,2765.0,3.93096]
[1740079702113,2.53942662,2765.3,2765.1,0.72313]
[1740079702114,0.72853662,2765.3,2765.1,0.72313]
[1740079702421,0.00542662,2765.3,2765.0,3.2078]
[1740079702724,0.72852662,2765.3,2765.1,0.72313]
[1740079703522,0.72852662,2765.3,2765.1,0.72312]
[1740079704119,0.72312,2765.2,2765.0,3.93095]
[1740079704315,0.00542662,2765.3,2765.0,3.2078]
[1740079704521,0.00542662,2765.3,2765.1,0.72313]
[1740079704720,0.72311,2765.2,2765.1,0.72313]
[1740079705228,0.00542662,2765.3,2765.1,0.72313]
[1740079705429,0.72852662,2765.3,2765.1,0.72312]
[1740079705625,0.00542662,2765.3,2765.0,3.2078]
[1740079705821,0.72853662,2765.3,2765.1,0.72313]
[1740079706625,0.00542662,2765.3,2765.1,0.72313]
[1740079706828,0.72853662,2765.3,2765.1,0.72313]
[1740079707127,0.72311,2765.2,2765.1,0.72313]
[1740079707328,0.00542662,2765.3,2765.0,3.2078]
[1740079707519,0.72314,2765.2,2765.0,3.93095]
[1740079707722,0.72314,2765.2,2765.1,0.72314]
[1740079708325,0.72312,2765.2,2765.1,0.72313]
[1740079708722,0.00542662,2765.3,2765.1,0.72313]
[1740079708924,0.72311,2765.2,2765.1,0.72313]
[1740079709226,0.00542662,2765.3,2765.2,0.72311]
[1740079709227,0.72850662,2765.3,2765.2,0.72311]
[1740079709740,0.00542662,2765.3,2765.2,0.72311]
[1740079711031,1.1445,2766.2,2765.2,6.0]
[1740079711231,1.1445,2766.2,2765.1,4.16189]
[1740079711232,1.1445,2766.2,2766.0,3.2078]
[1740079711533,1.1445,2766.2,2766.0,3.93069]
[1740079711726,1.86737,2766.2,2766.0,3.93069]
[1740079712025,1.1445,2766.2,2766.0,3.2078]
[1740079712332,0.7229,2766.0,2765.8,0.72293]
[1740079712527,0.72289,2766.1,2765.9,0.72293]
[1740079712828,2.515,2766.1,2765.7,3.2078]
[1740079713130,0.72295,2765.8,2765.7,3.2078]
[1740079714636,3.23788,2766.1,2765.7,3.2078]
[1740079714828,0.72288,2766.1,2765.9,0.72293]
[1740079715024,3.6605,2766.2,2765.7,3.2078]
[1740079715335,0.72295,2765.8,2765.7,3.2078]
[1740079716929,0.72304,2765.5,2765.3,3.93087]
[1740079717133,0.72302,2765.6,2765.3,3.93087]
[1740079717425,0.72304,2765.5,2765.3,3.93088]
[1740079717632,2.514,2765.8,2765.3,3.93088]
[1740079717832,0.72304,2765.5,2765.3,3.93088]
[1740079718032,2.514,2765.8,2765.3,3.93088]
[1740079718539,2.514,2765.8,2765.3,3.2078]
[1740079718729,0.72301,2765.6,2765.4,0.72305]
[1740079719032,3.0791,2765.9,2765.3,3.2078]
[1740079719334,1.1445,2766.2,2765.6,3.2078]
[1740079719633,0.573,2766.2,2765.9,3.2078]
[1740079720236,1.29586,2766.2,2766.0,0.72289]
[1740079720535,0.573,2766.2,2766.0,0.72289]
[1740079720737,1.29586,2766.2,2766.0,0.72289]
[1740079720938,1.29586,2766.2,2765.9,3.93071]
[1740079721132,1.29586,2766.2,2766.0,0.72289]
[1740079721736,0.72288,2766.1,2765.9,3.93072]
[1740079722038,0.573,2766.2,2765.9,3.2078]
[1740079722239,0.573,2766.2,2766.0,0.72289]
[1740079722436,1.29586,2766.2,2766.0,0.72289]
[1740079722632,0.573,2766.2,2765.9,3.2078]
[1740079722836,1.29587,2766.2,2766.0,0.72289]
[1740079723137,0.72289,2766.1,2765.9,3.93071]
[1740079723442,1.29585,2766.2,2766.0,0.72288]
[1740079723632,0.573,2766.2,2765.9,3.2078]
[1740079723938,1.29585,2766.2,2766.0,0.72288]
[1740079725140,0.573,2766.2,2766.0,0.72288]
[1740079725341,0.573,2766.2,2765.9,3.93072]
[1740079725536,0.72288,2766.1,2765.9,3.93072]
[1740079725743,0.72288,2766.1,2765.9,3.93071]
[1740079726043,1.29587,2766.2,2766.0,0.7229]
[1740079726339,0.72288,2766.1,2766.0,0.7229]
[1740079726941,0.72288,2766.1,2765.9,3.9307]
[1740079727240,0.573,2766.2,2766.0,0.72289]
[1740079727442,0.72289,2766.1,2765.9,3.93072]
[1740079727642,0.72289,2766.1,2766.0,0.7229]
[1740079728732,1.29586,2766.2,2766.1,0.72288]
[1740079728933,1.29586,2766.2,2765.9,3.2078]
[1740079729138,0.573,2766.2,2766.0,0.72289]
[1740079729330,0.72288,2766.1,2766.0,0.72289]
[1740079729843,0.72288,2766.1,2765.9,3.2078]
[1740079730043,0.72288,2766.1,2766.0,0.7229]
[1740079730239,0.72278,2766.5,2766.0,1.80725]
[1740079730441,0.72277,2766.5,2766.3,3.2078]
[1740079730642,3.0339,2766.8,2766.3,3.2078]
[1740079731141,4.84066,2766.8,2766.3,3.93061]
[1740079731346,0.72279,2766.5,2766.3,3.93061]
[1740079731540,4.84065,2766.8,2766.3,3.93061]
[1740079731741,3.0339,2766.8,2766.3,3.2078]
[1740079732043,0.72276,2766.6,2766.4,0.72279]
[1740079732247,0.72276,2766.6,2766.3,3.2078]
[1740079732248,0.7228,2766.4,2766.3,3.2078]
[1740079732543,3.0339,2766.8,2766.3,3.2078]
[1740079732842,0.5469,2766.8,2766.3,3.2078]
[1740079733042,0.72275,2766.6,2766.4,0.72279]
[1740079733234,0.5505,2767.3,2766.3,3.2078]
[1740079733437,0.5744,2767.2,2767.0,0.72262]
[1740079733639,1.297,2767.2,2767.0,0.72262]
[1740079733839,0.5744,2767.2,2766.6,3.2078]
[1740079734044,1.80654,2767.1,2766.6,3.2078]
[1740079734232,3.7822,2767.2,2766.6,3.2078]
[1740079734433,0.72266,2767.0,2766.6,3.2078]
[1740079734634,0.85590098,2767.2,2766.7,0.7227]
[1740079734837,0.72267,2767.0,2766.6,3.2078]
[1740079735038,0.85590098,2767.2,2766.6,3.2078]
[1740079735245,0.85590098,2767.2,2766.6,3.93054]
[1740079735443,0.72269,2766.9,2766.6,3.93054]
[1740079735646,3.34090098,2767.2,2766.6,3.93054]
[1740079735946,0.7227,2766.8,2766.6,3.93054]
[1740079736142,5.14741098,2767.2,2766.6,3.2078]
[1740079736344,0.72272,2766.7,2766.6,3.2078]
[1740079738846,2.482,2766.8,2766.6,3.2078]
[1740079739041,3.2047,2766.8,2766.6,3.2078]
[1740079739243,2.482,2766.8,2766.6,3.2078]
[1740079739443,0.72272,2766.7,2766.6,3.2078]
[1740079740640,1.25922,2766.7,2766.6,3.2078]
[1740079741348,1.25922,2766.7,2766.2,3.2078]
[1740079741349,1.1271,2766.7,2766.2,3.2078]
[1740079741647,1.29896,2766.6,2766.4,0.72278]
[1740079741947,0.5762,2766.6,2766.5,3.2078]
[1740079742145,0.5762,2766.6,2766.5,3.93057]
[1740079742748,0.5762,2766.6,2766.5,3.2078]